bitfinex-derivatives/quotes_ETHF0:USTF0_20241018
["timestamp","ask_amount","ask_price","bid_price","bid_amount"]
[1729292311031,3.8520022,2637.4,2637.3,0.37915]
[1729292312421,3.85200833,2637.4,2637.3,0.37915]
[1729292314238,3.85200591,2637.4,2637.3,0.37915]
[1729292315030,2.10286044,2637.4,2637.3,1.74915]
[1729292315230,2.10286359,2637.4,2637.3,1.74915]
[1729292315429,2.10285925,2637.4,2637.3,1.74915]
[1729292315622,1.91320398,2637.4,2637.3,1.74915]
[1729292316621,0.427,2637.4,2637.3,1.74915]
[1729292317535,0.80614,2637.4,2637.3,1.74915]
[1729292317730,2.48200177,2637.4,2637.3,1.74915]
[1729292318031,2.29234398,2637.4,2637.3,1.74915]
[1729292318238,2.48200247,2637.4,2637.3,1.74915]
[1729292318724,2.48200009,2637.4,2637.3,1.74915]
[1729292320440,2.48200009,2637.4,2637.3,0.37915]
[1729292320441,2.10286009,2637.4,2637.3,0.37915]
[1729292321740,0.61665611,2637.4,2637.3,0.37915]
[1729292322038,0.99579611,2637.4,2637.3,0.37915]
[1729292322835,2.48266798,2637.4,2637.3,0.37915]
[1729292323142,2.10348875,2637.4,2637.3,0.37915]
[1729292323537,0.61665962,2637.4,2637.3,0.37915]
[1729292324342,0.99579962,2637.4,2637.3,0.37915]
[1729292324542,0.61665962,2637.4,2637.3,0.37915]
[1729292325538,0.99579962,2637.4,2637.3,0.37915]
[1729292326239,0.61665962,2637.4,2637.3,1.74915]
[1729292326546,0.427,2637.4,2637.3,1.74915]
[1729292327145,0.427,2637.4,2637.3,2.74398349]
[1729292327443,0.427,2637.4,2637.2,0.37916]
[1729292327444,0.37915,2637.3,2637.2,0.37916]
[1729292327748,0.56880406,2637.3,2637.2,0.37916]
[1729292329540,2.55433539,2637.3,2637.2,0.37916]
[1729292329741,0.56880406,2637.3,2637.2,0.37916]
[1729292330535,2.55433539,2637.3,2637.2,0.37916]
[1729292331233,2.36468133,2637.3,2637.2,0.37916]
[1729292331451,2.55435468,2637.3,2637.2,0.37916]
[1729292333147,0.56882335,2637.3,2637.2,0.37916]
[1729292333349,0.37915,2637.3,2637.2,0.37916]
[1729292334349,0.56881973,2637.3,2637.2,0.37916]
[1729292334648,2.55191999,2637.3,2637.2,0.37916]
[1729292335044,3.92191999,2637.3,2637.2,0.37916]
[1729292335443,0.37917,2637.2,2637.1,0.37918]
[1729292335645,2.32773973,2637.2,2637.1,0.37918]
[1729292336342,0.3889,2637.2,2637.1,0.37918]
[1729292336543,0.95774622,2637.2,2637.1,0.37918]
[1729292336743,0.57857622,2637.2,2637.1,0.37918]
[1729292337141,0.57857622,2637.2,2637.1,1.74918]
[1729292338053,0.95774622,2637.2,2637.1,1.74918]
[1729292338452,0.57857405,2637.2,2637.1,1.74918]
[1729292339057,0.95774405,2637.2,2637.1,1.74918]
[1729292339847,0.57857405,2637.2,2637.1,1.74918]
[1729292340254,0.95774405,2637.2,2637.1,1.74918]
[1729292340453,0.57857405,2637.2,2637.1,1.74918]
[1729292340649,0.3889,2637.2,2637.1,1.74918]
[1729292340953,0.57857084,2637.2,2637.1,1.74918]
[1729292341547,0.57857084,2637.2,2637.1,0.37918]
[1729292341748,2.32774084,2637.2,2637.1,0.37918]
[1729292343156,0.95774084,2637.2,2637.1,0.37918]
[1729292343752,0.57857084,2637.2,2637.1,0.37918]
[1729292344161,0.95774084,2637.2,2637.1,0.37918]
[1729292345262,0.57857084,2637.2,2637.1,0.37918]
[1729292346867,0.95774084,2637.2,2637.1,0.37918]
[1729292347073,0.57857084,2637.2,2637.1,0.37918]
[1729292347671,2.9408411,2637.2,2637.1,0.37918]
[1729292347876,2.5616711,2637.2,2637.1,0.37918]
[1729292348067,0.95774084,2637.2,2637.1,0.37918]
[1729292348467,2.5616711,2637.2,2637.1,0.37918]
[1729292348776,2.9408411,2637.2,2637.1,0.37918]
[1729292349274,2.5616711,2637.2,2637.1,0.37918]
[1729292349769,2.9408411,2637.2,2637.1,0.37918]
[1729292350374,2.1727711,2637.2,2637.1,0.37918]
[1729292350580,0.18967084,2637.2,2637.1,0.37918]
[1729292350769,0.18967084,2637.2,2637.0,3.31182105]
[1729292350971,1.48811777,2637.1,2637.0,2.74303105]
[1729292353980,1.48811777,2637.1,2637.0,6.53503105]
[1729292354181,0.99229385,2637.1,2637.0,7.98472322]
[1729292354381,0.99229385,2637.1,2637.0,7.98561172]
[1729292354572,0.99229385,2637.1,2637.0,7.98568956]
[1729292354967,0.99229385,2637.1,2637.0,7.98567958]
[1729292355175,0.99229385,2637.1,2637.0,6.49396164]
[1729292355377,0.99229385,2637.1,2637.0,7.98566719]
[1729292356168,0.99229385,2637.1,2637.0,9.70176164]
[1729292356376,0.99229385,2637.1,2637.0,11.19349123]
[1729292358280,0.99229385,2637.1,2637.0,11.1934465]
[1729292358669,0.99229385,2637.1,2637.0,11.19345555]
[1729292360984,0.99229385,2637.1,2637.0,7.98565555]
[1729292361187,0.99229385,2637.1,2637.0,11.19345555]
[1729292361487,0.99229385,2637.1,2637.0,11.19352115]
[1729292362482,0.99229385,2637.1,2637.0,9.70177069]
[1729292362983,0.99229385,2637.1,2637.0,6.49397069]
[1729292363386,0.99229385,2637.1,2637.0,9.70177069]
[1729292363983,0.99229385,2637.1,2637.0,11.19360573]
[1729292364178,0.99229385,2637.1,2637.0,9.70177069]
[1729292366787,0.99229385,2637.1,2637.0,6.49397069]
[1729292366990,0.99229385,2637.1,2637.0,9.70177069]
[1729292367183,0.99229385,2637.1,2637.0,11.19366814]
[1729292367382,0.99229385,2637.1,2637.0,7.40166814]
[1729292367783,0.99229385,2637.1,2637.0,7.40166409]
[1729292368583,0.99229385,2637.1,2637.0,5.90977069]
[1729292368990,0.99229385,2637.1,2637.0,7.40167661]
[1729292369183,0.99229385,2637.1,2637.0,5.90977069]
[1729292369892,0.99229385,2637.1,2637.0,7.4016717]
[1729292370284,0.99229385,2637.1,2637.0,7.40168095]
[1729292371581,0.99229385,2637.1,2637.0,6.03168095]
[1729292371786,1.80009385,2637.1,2637.0,7.40168095]
[1729292372289,1.80009385,2637.1,2637.0,7.40169992]
[1729292372681,0.8078,2637.1,2637.0,7.40169992]
[1729292372882,1.80036057,2637.1,2637.0,5.90977069]
[1729292373087,1.80036057,2637.1,2637.0,7.4018713]
[1729292373088,0.8078,2637.1,2637.0,7.4018713]
[1729292373284,1.80035257,2637.1,2637.0,5.90977069]
[1729292373488,1.80035257,2637.1,2637.0,6.70477069]
[1729292373892,1.80035257,2637.1,2637.0,8.19681657]
[1729292374188,1.80035257,2637.1,2637.0,4.98901657]
[1729292374493,0.8078,2637.1,2637.0,4.98901657]
[1729292375084,0.8078,2637.1,2637.0,8.19681657]
[1729292375284,1.80033319,2637.1,2637.0,8.19681657]
[1729292375589,1.80033319,2637.1,2637.0,4.98901657]
[1729292375789,1.80035745,2637.1,2637.0,6.70477069]
[1729292375988,0.8078,2637.1,2637.0,8.19682536]
[1729292376787,1.80034262,2637.1,2637.0,8.19682536]
[1729292376989,0.8078,2637.1,2637.0,8.19682536]
[1729292377787,0.8078,2637.1,2637.0,8.1971155]
[1729292377988,0.8078,2637.1,2637.0,4.9893155]
[1729292378382,1.8003541,2637.1,2637.0,6.70506083]
[1729292378586,1.80036094,2637.1,2637.0,8.19713307]
[1729292378985,0.8078,2637.1,2637.0,8.19716122]
[1729292379594,1.8003607,2637.1,2637.0,8.19716122]
[1729292380290,0.8078,2637.1,2637.0,8.19716122]
[1729292380591,1.80035156,2637.1,2637.0,8.19716122]
[1729292382394,0.8078,2637.1,2637.0,4.98936122]
[1729292382596,0.8078,2637.1,2637.0,4.03629039]
[1729292382788,0.8078,2637.1,2637.0,8.19720245]
[1729292382988,1.80038741,2637.1,2637.0,8.19720245]
[1729292383289,1.80038741,2637.1,2637.0,6.70509328]
[1729292384096,0.8078,2637.1,2637.0,8.1972687]
[1729292384691,0.8078,2637.1,2637.0,4.9894687]
[1729292384992,1.80043561,2637.1,2637.0,6.70509328]
[1729292385201,0.8078,2637.1,2637.0,8.19730749]
[1729292385697,2.29591777,2637.1,2637.0,8.19730749]
[1729292385897,0.8078,2637.1,2637.0,6.70509328]
[1729292386299,2.29591777,2637.1,2637.0,8.19735976]
[1729292388103,2.29591777,2637.1,2637.0,4.98955976]
[1729292388497,2.29591777,2637.1,2637.0,8.19735976]
[1729292388798,2.29591777,2637.1,2637.0,8.1974816]
[1729292389606,2.29591777,2637.1,2637.0,3.49729328]
[1729292389895,0.8078,2637.1,2637.0,5.75199]
[1729292390505,0.8078,2637.1,2637.0,2.54419]
[1729292390801,0.8078,2637.1,2637.0,5.75199]
[1729292391003,0.8078,2637.1,2637.0,6.70529033]
[1729292391004,2.29763327,2637.1,2637.0,6.70529033]
[1729292392601,2.29763327,2637.1,2637.0,6.70536412]
[1729292393402,2.29763327,2637.1,2637.0,3.49756412]
[1729292393599,2.29763327,2637.1,2637.0,6.70536412]
[1729292395211,2.70793327,2637.1,2637.0,6.70536412]
[1729292395598,2.89760164,2637.1,2637.0,6.70536412]
[1729292396299,2.89760164,2637.1,2637.0,5.48752047]
[1729292396697,2.89760164,2637.1,2637.0,8.69532047]
[1729292397103,2.89760164,2637.1,2637.0,5.48752047]
[1729292397499,2.89760171,2637.1,2637.0,5.4878546]
[1729292397905,2.89760171,2637.1,2637.0,8.6956546]
[1729292398411,2.89760171,2637.1,2637.0,5.4878546]
[1729292398906,2.89760171,2637.1,2637.0,8.6956546]
[1729292399294,1.40776844,2637.1,2637.0,8.6956546]
[1729292400103,2.89904842,2637.1,2637.0,10.6033461]
[1729292400299,2.89904842,2637.1,2637.0,10.60327423]
[1729292400501,1.40776844,2637.1,2637.0,8.6956546]
[1729292401011,1.4077702,2637.1,2637.0,8.69580352]
[1729292401409,2.89938499,2637.1,2637.0,8.69580352]
[1729292401708,1.4077702,2637.1,2637.0,8.69580352]
[1729292401906,1.4077702,2637.1,2637.0,5.48800352]
[1729292402298,1.4077702,2637.1,2637.0,8.69580352]
[1729292403008,1.4077702,2637.1,2637.0,6.70584717]
[1729292403802,3.39421457,2637.1,2637.0,6.70584717]
[1729292404204,1.4077702,2637.1,2637.0,6.70584717]
[1729292404709,3.39421457,2637.1,2637.0,6.70584717]
[1729292405023,1.4077702,2637.1,2637.0,6.70584717]
[1729292405508,1.40776689,2637.1,2637.0,6.7057967]
[1729292410015,2.8987416,2637.1,2637.0,8.69575305]
[1729292410208,1.40776746,2637.1,2637.0,8.69570986]
[1729292410411,2.70902804,2637.1,2637.0,8.69570986]
[1729292410614,2.8986955,2637.1,2637.0,8.69570986]
[1729292410827,2.89870933,2637.1,2637.0,8.69570986]
[1729292411014,1.40776746,2637.1,2637.0,6.70575351]
[1729292412417,3.39421183,2637.1,2637.0,3.49795351]
[1729292412605,3.39421183,2637.1,2637.0,8.1989853]
[1729292412811,3.39421183,2637.1,2637.0,6.70575351]
[1729292413111,1.40776746,2637.1,2637.0,6.70575351]
[1729292414121,2.70949639,2637.1,2637.0,8.69570986]
[1729292414422,2.89916385,2637.1,2637.0,8.69570986]
[1729292415129,2.8991571,2637.1,2637.0,8.69567986]
[1729292415706,2.8991571,2637.1,2637.0,5.48787986]
[1729292415907,2.8991571,2637.1,2637.0,8.69567986]
[1729292418513,2.8991571,2637.1,2637.0,7.39540464]
[1729292418712,2.8991571,2637.1,2637.0,10.60320464]
[1729292418916,1.40776071,2637.1,2637.0,8.69567986]
[1729292419514,1.40776696,2637.1,2637.0,8.69574524]
[1729292421110,1.40776696,2637.1,2637.0,6.70578889]
[1729292422119,1.40776696,2637.1,2637.0,8.69574524]
[1729292422324,1.40776696,2637.1,2637.0,6.70578889]
[1729292422527,1.40776696,2637.1,2637.0,8.69574524]
[1729292422729,1.40776696,2637.1,2637.0,6.70578889]
[1729292423323,1.2181,2637.1,2637.0,5.75199]
[1729292424421,1.40776847,2637.1,2637.0,8.69680719]
[1729292425926,1.40776847,2637.1,2637.0,6.70579576]
[1729292426525,2.89916069,2637.1,2637.0,8.69680719]
[1729292427022,1.40776847,2637.1,2637.0,8.69680719]
[1729292427228,2.70953458,2637.1,2637.0,8.69680719]
[1729292427427,1.40776847,2637.1,2637.0,8.69680719]
[1729292428026,1.40776847,2637.1,2637.0,5.48900719]
[1729292428527,1.40776847,2637.1,2637.0,8.69680719]
[1729292429428,1.40776847,2637.1,2637.0,8.69680042]
[1729292429429,1.40776608,2637.1,2637.0,8.69680042]
[1729292429627,1.40776608,2637.1,2637.0,6.70578899]
[1729292429828,1.40776608,2637.1,2637.0,8.69680042]
[1729292430128,1.40776608,2637.1,2637.0,6.70578899]
[1729292430330,1.40776608,2637.1,2637.0,8.69680042]
[1729292430731,1.40776608,2637.1,2637.0,6.70578899]
[1729292430939,1.40776608,2637.1,2637.0,8.69680042]
[1729292431433,1.40776608,2637.1,2637.0,6.70578899]
[1729292433536,1.40776608,2637.1,2637.0,8.69680042]
[1729292434240,1.40776144,2637.1,2637.0,8.69678219]
[1729292434938,1.40776144,2637.1,2637.0,6.70577076]
[1729292435247,1.40776144,2637.1,2637.0,6.53178219]
[1729292435540,3.39631671,2637.1,2637.0,4.54077076]
[1729292435841,3.39631671,2637.1,2637.0,5.91077076]
[1729292436141,1.40776144,2637.1,2637.0,5.91077076]
[1729292436630,3.39631671,2637.1,2637.0,5.91077076]
[1729292437338,3.39631671,2637.1,2637.0,4.54077076]
[1729292437531,3.39631671,2637.1,2637.0,7.40405707]
[1729292439633,3.39631671,2637.1,2637.0,5.91077076]
[1729292440034,3.39631671,2637.1,2637.0,2.70297076]
[1729292440343,3.39631671,2637.1,2637.0,3.69832974]
[1729292440544,3.39631671,2637.1,2637.0,3.69827564]
[1729292441539,3.39650553,2637.1,2637.0,3.69827564]
[1729292443039,3.39650553,2637.1,2637.0,2.74449488]
[1729292443243,3.20684409,2637.1,2637.0,2.74449488]
[1729292444137,3.39652045,2637.1,2637.0,3.69803248]
[1729292444338,3.39652045,2637.1,2637.0,4.49203248]
[1729292447045,3.20684409,2637.1,2637.0,3.53849488]
[1729292447551,1.2181,2637.1,2637.0,2.54319]
[1729292449145,1.2181,2637.1,2637.0,1.74919]
[1729292456174,1.4077733,2637.1,2637.0,3.69761009]
[1729292456472,4.57534066,2637.1,2637.0,2.32761009]
[1729292456766,4.57534066,2637.1,2637.0,1.37424056]
[1729292456767,5.14419404,2637.1,2637.0,1.37424056]
[1729292459175,5.14419955,2637.1,2637.0,1.37424056]
[1729292459972,5.14419955,2637.1,2637.0,0.37919]
[1729292460275,5.14419955,2637.1,2637.0,1.37424056]
[1729292460673,5.14419955,2637.1,2637.0,0.37919]
[1729292462578,4.76502439,2637.1,2637.0,1.74919]
[1729292462779,4.76502439,2637.1,2637.0,2.74424056]
[1729292462971,3.39502439,2637.1,2637.0,2.74424056]
[1729292463171,3.77420439,2637.1,2637.0,2.74424056]
[1729292463474,3.77420439,2637.1,2637.0,1.74919]
[1729292464375,3.77420439,2637.1,2637.0,2.74424056]
[1729292464566,3.77420439,2637.1,2637.0,1.74919]
[1729292465170,3.77420439,2637.1,2637.0,1.37424056]
[1729292465480,3.77420439,2637.1,2637.0,0.37919]
[1729292466172,3.77420439,2637.1,2637.0,1.37424056]
[1729292466575,3.77420439,2637.1,2637.0,0.37919]
[1729292467276,3.77420367,2637.1,2637.0,0.37919]
[1729292467870,3.77420367,2637.1,2637.0,1.37424056]
[1729292470375,3.77420367,2637.1,2637.0,0.37919]
[1729292470573,3.77420367,2637.1,2637.0,1.37424056]
[1729292470785,3.39502367,2637.1,2637.0,1.37424056]
[1729292470984,3.77420367,2637.1,2637.0,1.37424056]
[1729292472072,3.77419734,2637.1,2637.0,1.37424056]
[1729292473983,8.93619734,2637.1,2637.0,1.37424056]
[1729292474179,6.94895668,2637.1,2637.0,0.37919]
[1729292474489,8.93606628,2637.1,2637.0,0.37919]
[1729292474688,6.94895668,2637.1,2637.0,0.37919]
[1729292475080,3.15695668,2637.1,2637.0,0.37919]
[1729292475385,1.78695668,2637.1,2637.0,0.37919]
[1729292475581,3.77413978,2637.1,2637.0,1.37424056]
[1729292475979,1.78695668,2637.1,2637.0,0.37919]
[1729292476586,1.78695668,2637.1,2637.0,1.37424056]
[1729292476790,1.78696095,2637.1,2637.0,0.37919]
[1729292476984,1.78696095,2637.1,2637.0,1.37424056]
[1729292477185,1.78696095,2637.1,2637.0,0.37919]
[1729292478882,1.78696095,2637.1,2637.0,1.37424056]
[1729292480575,3.66855269,2637.1,2637.0,1.37424056]
[1729292481090,3.66859755,2637.1,2637.0,1.37424056]
[1729292481290,6.15264837,2637.1,2637.0,0.37919]
[1729292481485,4.08133082,2637.1,2637.0,0.37919]
[1729292481682,6.15272761,2637.1,2637.0,0.37919]
[1729292482291,1.7869662,2637.1,2637.0,1.37424056]
[1729292482593,3.66807938,2637.1,2637.0,1.37424056]
[1729292482891,6.15223009,2637.1,2637.0,1.37424056]
[1729292483394,5.77305009,2637.1,2637.0,1.37424056]
[1729292483595,1.4077862,2637.1,2637.0,1.37424056]
[1729292483893,6.15209391,2637.1,2637.0,1.37424056]
[1729292484079,3.66804309,2637.1,2637.0,1.37424056]
[1729292484284,1.4077862,2637.1,2637.0,1.37424056]
[1729292484693,1.4077862,2637.1,2637.0,3.69789963]
[1729292484694,0.9942862,2637.1,2637.0,3.69789963]
[1729292484889,2.79175738,2637.1,2637.0,4.19542492]
[1729292485081,2.98144358,2637.1,2637.0,2.70284907]
[1729292486293,2.98143137,2637.1,2637.0,2.70284459]
[1729292486893,2.98143137,2637.1,2637.0,3.69820001]
[1729292487289,0.99427399,2637.1,2637.0,3.69820001]
[1729292487692,1.37345399,2637.1,2637.0,3.69824861]
[1729292487887,3.17098717,2637.1,2637.0,3.69824861]
[1729292488193,1.37345399,2637.1,2637.0,3.69824861]
[1729292488597,2.98147068,2637.1,2637.0,2.70286864]
[1729292489198,2.98147068,2637.1,2637.0,3.69824161]
[1729292489894,0.99427399,2637.1,2637.0,2.74457942]
[1729292490299,0.99427399,2637.1,2637.0,3.69826625]
[1729292490496,0.99427399,2637.1,2637.0,2.74457942]
[1729292491193,2.98085751,2637.1,2637.0,3.69825511]
[1729292491398,0.99428211,2637.1,2637.0,2.74457942]
[1729292491896,2.79117183,2637.1,2637.0,3.69825798]
[1729292492099,2.98085394,2637.1,2637.0,3.69825798]
[1729292492298,2.98085394,2637.1,2637.0,3.6982164]
[1729292492501,2.98085394,2637.1,2637.0,2.70286856]
[1729292492689,2.98085394,2637.1,2637.0,3.69823763]
[1729292493193,2.58655394,2637.1,2637.0,2.70286856]
[1729292493392,0.18968211,2637.1,2637.0,4.62424441]
[1729292493595,1.49001921,2637.1,2637.0,5.12176969]
[1729292493797,1.98657183,2637.2,2637.1,0.37918]
[1729292494004,0.61305799,2637.2,2637.1,4.19577525]
[1729292494203,0.61305799,2637.2,2637.1,7.40357388]
[1729292495691,0.61306217,2637.2,2637.1,4.19546501]
[1729292495891,2.10284701,2637.2,2637.1,7.40326501]
[1729292496296,2.10284538,2637.2,2637.1,7.40326501]
[1729292496495,2.10284622,2637.2,2637.1,7.40326501]
[1729292497113,0.61306138,2637.2,2637.1,6.90530461]
[1729292497306,1.04376138,2637.2,2637.1,6.90530461]
[1729292497606,1.04376138,2637.2,2637.1,3.69750461]
[1729292500093,1.04376138,2637.2,2637.1,2.70254969]
[1729292500298,1.04376138,2637.2,2637.1,3.69739205]
[1729292500600,1.04376138,2637.2,2637.1,3.69735278]
[1729292500798,0.61306138,2637.2,2637.1,2.70254969]
[1729292500992,0.3984,2637.4,2637.1,11.38159385]
[1729292500993,1.48958566,2637.4,2637.1,11.38159385]
[1729292501193,1.48958566,2637.6,2637.3,7.51577113]
[1729292501403,1.48958566,2637.7,2637.6,0.37911]
[1729292501609,1.48958566,2637.7,2637.6,2.74329261]
[1729292501903,1.48958566,2637.7,2637.6,3.69995552]
[1729292502293,1.48958566,2637.8,2637.6,6.52864552]
[1729292502499,0.7845,2637.9,2637.6,6.52864552]
[1729292502500,1.88618566,2637.9,2637.8,0.37908]
[1729292502700,1.88618566,2637.9,2637.8,1.74908]
[1729292503497,0.3966,2637.9,2637.8,1.74908]
[1729292506204,0.3966,2637.9,2637.8,2.15258]
[1729292506402,7.41152747,2638.0,2637.9,0.37907]
[1729292506596,0.4031,2638.3,2637.9,6.7408]
[1729292506797,0.8087,2638.3,2638.2,1.74902]
[1729292507003,1.48958566,2638.6,2638.5,0.37898]
[1729292507305,1.2205,2638.6,2638.5,1.74898]
[1729292511513,1.2205,2638.6,2638.5,1.37]
[1729292511711,1.59946,2638.6,2638.5,2.163]
[1729292513011,1.2205,2638.6,2638.5,2.54198]
[1729292514807,0.8019,2638.6,2638.5,2.54198]
[1729292524118,0.4235,2638.8,2638.5,2.54198]
[1729292524317,0.8224,2638.8,2638.7,1.74895]
[1729292525620,0.8224,2638.8,2638.7,3.11895]
[1729292525811,0.8224,2638.8,2638.7,1.74895]
[1729292527226,3.2078,2639.3,2638.7,1.74895]
[1729292527227,3.58667,2639.3,2639.2,0.37888]
[1729292527433,3.6158,2639.3,2639.2,1.74888]
[1729292527925,4.0321,2639.3,2639.2,1.74888]
[1729292528430,1.20316,2639.3,2639.2,1.74888]
[1729292529031,0.8243,2639.3,2639.2,1.74888]
[1729292531224,0.408,2639.3,2639.2,1.74888]
[1729292531825,0.408,2639.3,2639.2,0.37888]
[1729292532026,0.408,2639.3,2639.2,1.74888]
[1729292532220,0.78686,2639.3,2639.2,2.54088]
[1729292532929,0.408,2639.3,2639.2,2.54088]
[1729292533432,0.78686,2639.3,2639.2,2.54088]
[1729292533626,8.7746,2639.3,2638.7,3.2078]
[1729292533832,1.37,2639.0,2638.7,1.37]
[1729292534035,0.37894,2638.8,2638.7,1.37]
[1729292534637,0.78674,2638.8,2638.7,1.37]
[1729292535217,5.5674,2638.8,2638.6,0.792]
[1729292535424,5.5674,2638.8,2638.6,2.162]
[1729292535425,0.37895,2638.7,2638.6,2.162]
[1729292536025,2.15674,2638.8,2638.6,1.74895]
[1729292536232,2.15674,2638.8,2638.7,1.37]
[1729292536428,4.57634,2638.8,2638.7,1.37]
[1729292536934,4.57634,2638.8,2638.7,1.74895]
[1729292538533,4.57634,2638.8,2638.7,1.37]
[1729292538934,4.57634,2638.8,2638.7,1.74895]
[1729292541026,0.78674,2638.8,2638.7,1.74895]
[1729292541225,0.4078,2638.8,2638.7,1.74895]
[1729292541830,0.78674,2638.8,2638.7,1.74895]
[1729292544429,0.78674,2638.8,2638.7,0.37895]
[1729292544630,0.78674,2638.8,2638.7,1.74895]
[1729292546543,2.26647761,2638.8,2638.7,1.74895]
[1729292547342,2.45604834,2638.8,2638.7,1.74895]
[1729292548437,0.97631073,2638.8,2638.7,1.74895]
[1729292548636,2.94929422,2638.8,2638.7,1.74895]
[1729292549031,2.57035422,2638.8,2638.7,1.74895]
[1729292549239,1.89487412,2638.8,2638.7,1.74895]
[1729292549436,2.08443289,2638.8,2638.7,1.74895]
[1729292550146,1.48707412,2638.8,2638.7,1.74895]
[1729292550548,1.67662823,2638.8,2638.7,1.74895]
[1729292550840,1.67662501,2638.8,2638.7,1.74895]
[1729292551235,0.18955089,2638.8,2638.7,1.74895]
[1729292552337,2.16253438,2638.8,2638.7,1.74895]
[1729292552838,0.18955089,2638.8,2638.7,1.74895]
[1729292553035,2.16253438,2638.8,2638.7,1.74895]
[1729292553547,0.18955089,2638.8,2638.7,1.74895]
[1729292554444,2.16253438,2638.8,2638.7,1.74895]
[1729292555348,0.18955089,2638.8,2638.7,1.74895]
[1729292555846,0.18955089,2638.8,2638.7,2.73612788]
[1729292556439,0.18955089,2638.8,2638.7,1.37]
[1729292556643,0.18955089,2638.8,2638.7,1.74895]
[1729292557147,2.16253438,2638.8,2638.7,1.74895]
[1729292560340,2.54147438,2638.8,2638.7,1.74895]
[1729292560538,2.16253438,2638.8,2638.6,0.98717788]
[1729292560739,2.35193349,2638.7,2638.6,2.54096]
[1729292560943,2.54148438,2638.7,2638.6,2.54096]
[1729292561143,0.56850089,2638.7,2638.6,2.54096]
[1729292561646,0.56852371,2638.7,2638.6,2.54096]
[1729292563844,2.84517936,2638.7,2638.6,2.54096]
[1729292564045,4.90715553,2638.7,2638.6,2.54096]
[1729292564247,2.44092617,2638.7,2638.6,2.54096]
[1729292564948,2.44092617,2638.7,2638.6,2.162]
[1729292565150,4.90715553,2638.7,2638.6,2.162]
[1729292565346,2.44092617,2638.7,2638.6,2.162]
[1729292565649,2.44092617,2638.7,2638.6,2.54096]
[1729292565948,2.44092617,2638.7,2638.6,2.162]
[1729292566553,0.5685236,2638.7,2638.6,2.54096]
[1729292567150,6.63477936,2638.7,2638.6,1.37]
[1729292567446,8.69652442,2638.7,2638.6,1.37]
[1729292568144,8.69652442,2638.7,2638.6,1.74896]
[1729292568537,6.63477936,2638.7,2638.6,1.74896]
[1729292569252,2.84517936,2638.7,2638.6,1.74896]
[1729292571644,0.37895,2638.7,2638.6,1.74896]
[1729292573954,0.37895,2638.7,2638.6,1.37]
[1729292574149,1.74895,2638.7,2638.6,1.37]
[1729292574350,1.74895,2638.7,2638.6,1.74896]
[1729292574541,1.74895,2638.7,2638.6,1.37]
[1729292575042,1.74895,2638.7,2638.6,1.74896]
[1729292578247,0.37895,2638.7,2638.6,1.74896]
[1729292581155,2.86109045,2638.7,2638.6,1.74896]
[1729292581350,4.92218516,2638.7,2638.6,1.74896]
[1729292581555,2.83454471,2638.7,2638.6,1.74896]
[1729292581951,2.83450472,2638.7,2638.6,1.74896]
[1729292582651,5.31664517,2638.7,2638.6,1.74896]
[1729292582963,2.83450472,2638.7,2638.6,1.74896]
[1729292583152,5.31664517,2638.7,2638.6,1.74896]
[1729292583350,2.83402069,2638.7,2638.6,1.74896]
[1729292583650,5.31616114,2638.7,2638.6,1.74896]
[1729292584449,5.31619996,2638.7,2638.6,1.74896]
[1729292586665,3.25559045,2638.7,2638.6,1.74896]
[1729292586853,3.25559045,2638.7,2638.6,1.37]
[1729292587056,3.25559045,2638.7,2638.4,1.1807]
[1729292587057,4.93630204,2638.7,2638.5,1.37]
[1729292587357,4.93630204,2638.7,2638.5,1.74897]
[1729292587358,2.55277489,2638.6,2638.5,1.74897]
[1729292587560,2.55271132,2638.6,2638.5,1.74897]
[1729292587767,0.56856074,2638.6,2638.5,1.74897]
[1729292588654,2.36312513,2638.6,2638.5,1.74897]
[1729292588960,2.55270587,2638.6,2638.5,1.74897]
[1729292589352,2.5526402,2638.6,2638.5,1.74897]
[1729292589769,0.56856074,2638.6,2638.5,1.74897]
[1729292590158,2.3630035,2638.6,2638.5,1.74897]
[1729292590468,2.55259865,2638.6,2638.5,1.74897]
[1729292591368,0.56856074,2638.6,2638.5,1.74897]
[1729292591564,2.36291753,2638.6,2638.5,1.74897]
[1729292591756,0.56856074,2638.6,2638.5,1.74897]
[1729292592064,2.36296916,2638.6,2638.5,1.74897]
[1729292592265,2.5525499,2638.6,2638.5,1.74897]
[1729292595460,2.5525499,2638.6,2638.5,1.37]
[1729292595661,0.37898,2638.5,2638.4,2.13769]
[1729292595862,1.38286074,2638.5,2638.4,1.7587]
[1729292596068,1.38286074,2638.5,2638.4,2.13769]
[1729292596256,3.3668499,2638.5,2638.4,2.13769]
[1729292596455,1.19328,2638.5,2638.4,2.13769]
[1729292596670,1.38286577,2638.5,2638.4,2.13769]
[1729292597068,3.36685493,2638.5,2638.4,2.13769]
[1729292597967,1.38286577,2638.5,2638.4,2.13769]
[1729292598168,3.36685493,2638.5,2638.4,2.13769]
[1729292598469,4.35787493,2638.5,2638.2,0.99406925]
[1729292598766,4.35787493,2638.5,2638.0,5.46596705]
[1729292598767,1.37,2638.3,2638.0,1.74904]
[1729292598973,0.37904,2638.1,2638.0,0.37904]
[1729292599165,0.56862577,2638.1,2638.0,0.37904]
[1729292599468,1.79062577,2638.1,2638.0,0.37904]
[1729292599876,1.79062577,2638.1,2638.0,1.74904]
[1729292601168,3.2759266,2638.1,2638.0,1.74904]
[1729292601569,3.27588952,2638.1,2638.0,1.74904]
[1729292601764,1.79062577,2638.1,2638.0,1.74904]
[1729292602269,3.27567168,2638.1,2638.0,1.74904]
[1729292603866,3.27569997,2638.1,2638.0,1.74904]
[1729292604775,3.08608591,2638.1,2638.0,1.74904]
[1729292604971,3.27569785,2638.1,2638.0,1.74904]
[1729292605178,3.08608591,2638.1,2638.0,1.74904]
[1729292607471,1.60104,2638.1,2638.0,1.74904]
[1729292607871,1.222,2638.1,2638.0,1.74904]
[1729292608177,1.60104,2638.1,2638.0,1.74904]
[1729292608373,1.48504591,2638.2,2638.1,0.37904]
[1729292608573,1.48504591,2638.2,2638.1,2.15874]
[1729292608574,0.37902,2638.2,2638.1,2.15874]
[1729292608873,1.86406591,2638.3,2638.2,0.37902]
[1729292609209,1.86406591,2638.3,2638.2,1.74902]
[1729292609406,1.86406591,2638.3,2638.2,2.15602]
[1729292610595,2.05366533,2638.3,2638.2,2.15602]
[1729292610795,1.86406591,2638.3,2638.2,2.15602]
[1729292613309,1.48504591,2638.3,2638.2,2.15602]